bitfinex/quotes_ETHUSD_20241030
["timestamp","ask_amount","ask_price","bid_price","bid_amount"]
[1730314475569,0.01,2669.9,2669.5,7.55006]
[1730314475984,0.01,2669.9,2669.6,0.06157686]
[1730314476641,0.01,2669.9,2669.6,3.80742686]
[1730314477279,0.01,2669.9,2669.6,3.80743686]
[1730314478372,0.01,2669.9,2669.6,7.55324686]
[1730314478574,0.01,2669.9,2669.6,7.55319686]
[1730314478746,0.01,2669.9,2669.6,8.68892655]
[1730314478960,0.01,2669.9,2669.6,4.94311655]
[1730314479481,0.01,2669.9,2669.6,8.68891655]
[1730314479783,0.01,2669.9,2669.6,4.94310655]
[1730314480360,0.01,2669.9,2669.6,1.19730655]
[1730314480555,0.01,2669.9,2669.7,3.74573]
[1730314481087,0.01,2669.9,2669.7,3.81576914]
[1730314482983,0.01,2669.9,2669.8,3.74559]
[1730314487493,0.01,2669.9,2669.7,4.99582088]
[1730314487992,0.01,2669.9,2669.7,5.05710513]
[1730314488504,0.01,2669.9,2669.7,4.99582088]
[1730314488666,0.01,2669.9,2669.7,8.74147088]
[1730314488987,0.01,2669.9,2669.8,3.74559]
[1730314489192,0.01,2669.9,2669.7,8.74142088]
[1730314489485,0.01,2669.9,2669.8,0.87414209]
[1730314489687,0.01,2669.9,2669.7,3.74562]
[1730314489874,0.01,2669.9,2669.7,7.49129]
[1730314490081,0.01,2669.9,2669.7,3.74562]
[1730314491757,0.01,2669.9,2669.7,7.49129]
[1730314493399,0.02,2670.2,2669.9,3.74541]
[1730314493606,0.02,2670.2,2669.9,4.494499]
[1730314494678,0.02,2670.2,2670.0,3.74526]
[1730314499514,0.01,2670.4,2670.1,3.74511]
[1730314499810,0.01,2670.3,2670.0,3.7453]
[1730314500011,0.35803056,2670.3,2670.1,0.5268889]
[1730314500223,0.01,2670.3,2670.1,0.5268889]
[1730314501711,5.37223816,2670.3,2669.9,0.7745]
[1730314502283,1.61732816,2670.1,2669.8,3.74553]
[1730314502483,1.70223984,2670.1,2669.7,3.74572]
[1730314502687,1.61732816,2669.9,2669.6,3.74586]
[1730314502909,1.61732816,2669.9,2669.7,0.755536]
[1730314503111,2.49763984,2670.1,2669.7,0.755536]
[1730314503616,6.24294984,2670.1,2669.7,0.755536]
[1730314504000,2.42272816,2670.1,2669.7,4.5761028]
[1730314504199,2.42272816,2670.1,2669.8,0.83218928]
[1730314504598,6.16790816,2670.1,2669.8,0.83218928]
[1730314504798,2.42272816,2670.1,2669.8,4.57777928]
[1730314505120,2.42272816,2670.1,2669.8,0.83218928]
[1730314505320,1.62732816,2670.1,2669.8,0.83218928]
[1730314505501,0.01,2670.1,2669.8,4.57776928]
[1730314505827,0.01,2670.1,2669.9,0.46526761]
[1730314508415,0.01,2670.1,2669.8,3.74553]
[1730314509293,3.75505,2670.2,2669.8,3.74553]
[1730314509493,0.34804134,2670.1,2669.8,7.49106]
[1730314509693,3.75505,2670.2,2669.5,9.54771816]
[1730314509694,0.01,2670.2,2669.5,9.54771816]
[1730314509928,0.01,2670.2,2669.9,3.74536]
[1730314510119,0.7792,2670.3,2669.9,4.119896]
[1730314510297,0.35803977,2670.2,2670.0,3.74527]
[1730314510499,0.01,2670.2,2670.0,3.74527]
[1730314510693,0.01,2670.2,2670.0,0.7865166]
[1730314510930,0.7792,2670.3,2670.0,0.7865166]
[1730314511133,0.35803902,2670.2,2670.0,4.5317466]
[1730314511344,0.01,2670.2,2670.0,0.7865166]
[1730314511508,0.7792,2670.3,2670.0,3.74531]
[1730314511708,0.35809873,2670.2,2670.0,3.74531]
[1730314511935,0.01,2670.2,2670.0,3.74531]
[1730314512141,0.01,2670.3,2670.1,0.749066]
[1730314512328,0.34812497,2670.2,2670.1,0.749066]
[1730314512529,0.35812497,2670.2,2670.1,0.749066]
[1730314512715,0.34812497,2670.2,2670.1,0.749066]
[1730314513606,0.34812497,2670.2,2670.1,4.494236]
[1730314514245,0.35812497,2670.2,2670.1,0.749066]
[1730314514542,0.34812497,2670.2,2670.1,0.749066]
[1730314514736,0.35812497,2670.2,2670.1,0.749066]
[1730314515147,0.34812497,2670.2,2670.1,0.749066]
[1730314515746,0.90496195,2670.2,2670.1,0.749066]
[1730314515949,0.34812497,2670.2,2670.1,0.749066]
[1730314517123,0.34807077,2670.2,2670.1,0.749066]
[1730314517328,0.90520516,2670.2,2670.1,0.749066]
[1730314517558,0.90534102,2670.2,2670.0,4.53169]
[1730314517730,1.62732816,2670.3,2670.1,3.74517]
[1730314518042,0.34821941,2670.2,2670.1,3.74517]
[1730314518245,0.34821941,2670.2,2670.1,4.572856]
[1730314518452,0.90537485,2670.2,2670.1,0.827686]
[1730314518753,0.34821941,2670.2,2670.1,0.827686]
[1730314519328,0.34821941,2670.2,2670.0,4.5317]
[1730314519534,0.34821941,2670.1,2670.0,4.5317]
[1730314520849,0.34824656,2670.1,2670.0,4.5317]
[1730314521341,0.34824656,2670.1,2670.0,0.7864]
[1730314522759,0.34824656,2670.1,2670.0,4.53171]
[1730314523355,0.34824656,2670.1,2670.0,0.7864]
[1730314524348,1.61732816,2670.3,2670.0,0.7864]
[1730314524754,0.90528743,2670.2,2670.0,0.7864]
[1730314524956,0.34818966,2670.1,2670.0,0.7864]
[1730314525328,0.34818966,2670.1,2670.0,5.359426]
[1730314527148,0.34818966,2670.1,2670.0,1.614116]
[1730314527358,0.34818966,2670.1,2670.0,0.7864]
[1730314528132,5.36225816,2670.3,2670.0,0.7864]
[1730314528329,0.90493759,2670.2,2670.0,0.7864]
[1730314528565,0.3480269,2670.1,2670.0,0.7864]
[1730314529445,0.3480269,2670.1,2670.0,1.239596]
[1730314529751,3.744,2671.0,2670.4,0.7862]
[1730314529752,0.01,2670.8,2670.4,0.7862]
[1730314530001,6.11388816,2670.9,2670.5,0.07488299]
[1730314530002,0.90498024,2670.7,2670.5,0.07488299]
[1730314530169,0.34806932,2670.6,2670.5,0.4605953]
[1730314531350,1.61732816,2670.7,2670.5,0.4605953]
[1730314532334,1.61732816,2670.7,2670.4,0.7862]
[1730314533253,4.49628,2671.1,2670.5,3.81943491]
[1730314533555,1.61732816,2671.1,2670.7,0.8014]
[1730314533744,5.36110816,2671.1,2670.7,0.87627726]
[1730314533946,5.36110816,2671.1,2670.7,1.56348273]
[1730314534129,1.61732816,2670.9,2670.7,0.8014]
[1730314535033,0.02,2671.2,2670.7,0.87627926]
[1730314535269,0.7737,2671.3,2670.7,0.87627926]
[1730314535270,0.7737,2671.3,2670.7,4.54565]
[1730314535433,1.61732816,2671.2,2670.7,4.54565]
[1730314535832,1.61732816,2671.2,2670.7,8.28989]
[1730314536029,1.61732816,2671.1,2670.8,0.866479]
[1730314536470,1.61732816,2671.1,2670.8,4.610629]
[1730314536777,1.61732816,2671.1,2670.8,0.866479]
[1730314536984,1.61732816,2670.9,2670.8,0.866479]
[1730314537138,1.61732816,2670.9,2670.7,0.8014]
[1730314538064,4.52133,2671.4,2670.8,0.07487665]
[1730314538244,1.61732816,2671.3,2670.8,3.74419]
[1730314538442,1.61732816,2671.1,2670.9,0.454559]
[1730314538659,1.61732816,2671.3,2670.9,0.454559]
[1730314539180,0.02,2671.4,2670.9,0.454559]
[1730314539341,1.61732816,2671.2,2671.0,0.4198699]
[1730314539539,1.61732816,2671.2,2670.9,0.829459]
[1730314539735,3.76337,2671.4,2671.0,0.788]
[1730314539970,5.38069816,2671.4,2671.0,0.788]
[1730314540548,5.38069816,2671.4,2671.1,0.4242559]
[1730314541467,1.61732816,2671.2,2671.1,0.4242559]
[1730314541859,1.61732816,2671.2,2671.0,0.788]
[1730314546380,1.61732816,2671.2,2670.7,3.8227]
[1730314546594,1.61732816,2671.0,2670.7,0.8227]
[1730314546907,1.61732816,2670.8,2670.5,0.7501]
[1730314547108,1.61732816,2670.8,2670.6,4.0]
[1730314547522,1.61732816,2670.8,2670.5,0.7501]
[1730314548812,5.36152816,2670.8,2670.4,3.0]
[1730314549020,1.61732816,2670.6,2670.4,1.04898]
[1730314549175,1.61732816,2670.6,2670.3,3.7564]
[1730314549483,1.61732816,2670.6,2670.3,7.50127]
[1730314551220,1.61732816,2670.6,2670.4,3.74471]
[1730314551374,1.61732816,2670.6,2670.4,1.124598]
[1730314552012,1.61732816,2670.6,2670.4,4.869308]
[1730314552898,1.61732816,2670.6,2670.4,1.124598]
[1730314553389,1.61732816,2670.6,2670.4,4.869338]
[1730314553996,1.61732816,2670.6,2670.4,1.124598]
[1730314555084,1.61732816,2670.6,2670.4,4.869338]
[1730314555287,1.61732816,2670.6,2670.4,3.74466]
[1730314558831,1.61732816,2670.6,2670.4,7.48933]
[1730314560133,1.61732816,2670.6,2670.4,3.74466]
[1730314561595,1.61732816,2670.6,2670.0,4.55659]
[1730314561832,1.61732816,2670.4,2670.2,3.74502]
[1730314563637,1.61732816,2670.4,2670.3,3.74489]
[1730314563843,1.61732816,2670.4,2670.2,3.74502]
[1730314563993,1.61732816,2670.4,2670.3,3.74489]
[1730314564389,2.37042816,2670.4,2670.1,3.74517]
[1730314564593,1.62732816,2670.4,2670.1,4.1952529]
[1730314564789,1.62732816,2670.4,2670.1,7.9403629]
[1730314564994,1.62732816,2670.4,2670.1,7.9403029]
[1730314565194,1.62732816,2670.4,2670.1,7.9402829]
[1730314565415,1.62732816,2670.4,2670.1,4.1951629]
[1730314565617,1.62732816,2670.4,2670.2,3.74502]
[1730314566231,1.62732816,2670.4,2670.2,4.53903829]
[1730314566432,1.62732816,2670.4,2670.2,0.79401829]
[1730314566602,1.62732816,2670.4,2669.8,0.7534]
[1730314566807,1.61732816,2669.9,2669.7,3.74566]
[1730314567008,1.61732816,2670.1,2669.8,3.74559]
[1730314567220,1.61732816,2670.1,2669.9,3.74537]
[1730314567397,1.61732816,2670.1,2669.9,4.49448]
[1730314567894,0.01,2670.4,2669.9,0.74911]
[1730314568094,3.74427,2670.8,2670.1,0.7667]
[1730314568095,1.3999,2670.7,2670.1,0.7667]
[1730314568324,1.61732816,2670.5,2670.2,3.74497]
[1730314568507,1.61732816,2670.3,2670.1,4.51181]
[1730314568724,1.61732816,2670.3,2670.2,0.825703]
[1730314569334,1.61732816,2670.3,2670.2,0.9006047]
[1730314569639,1.61732816,2670.3,2670.2,0.825703]
[1730314569809,1.61732816,2670.3,2670.2,3.74503]
[1730314570517,1.61732816,2670.5,2670.3,3.74487]
[1730314573201,1.61732816,2670.5,2670.3,3.74481]
[1730314573407,1.61732816,2670.5,2670.3,3.74478]
[1730314573643,1.61732816,2670.5,2670.4,0.374478]
[1730314573946,1.61732816,2670.5,2670.4,4.119228]
[1730314574248,1.61732816,2670.5,2670.4,0.374478]
[1730314574450,1.61732816,2670.5,2670.3,3.74478]
[1730314575945,1.61732816,2670.5,2670.3,7.48961]
[1730314576122,1.61732816,2670.5,2670.3,3.74478]
[1730314576714,0.6,2670.7,2670.1,4.51176]
[1730314576715,0.6,2670.7,2670.5,3.74455]
[1730314577118,0.6,2670.7,2670.6,3.74447]
[1730314577318,0.6,2670.7,2670.6,4.574102]
[1730314578040,0.6,2670.7,2670.6,0.829632]
[1730314580328,0.6,2670.7,2670.6,4.948702]
[1730314580732,0.6,2670.7,2670.6,0.829632]
[1730314581079,0.6,2670.7,2670.5,4.5519]
[1730314582365,1.61732816,2670.6,2670.5,0.8073]
[1730314582610,1.61732816,2670.6,2670.3,7.48963]
[1730314582735,1.61732816,2670.4,2670.3,6.74481]
[1730314583136,1.61732816,2670.4,2670.3,7.909512]
[1730314584143,1.61732816,2670.6,2670.4,3.74473]
[1730314585370,1.61732816,2670.6,2670.4,7.48941]
[1730314585586,1.61732816,2670.6,2670.4,3.74468]
[1730314585734,1.61732816,2670.6,2670.4,7.48936]
[1730314586070,1.61732816,2670.6,2670.4,3.74468]
[1730314586746,1.61732816,2670.6,2670.4,7.48936]
[1730314587090,1.61732816,2670.6,2670.5,3.74461]
[1730314587251,1.61732816,2670.6,2670.4,4.9883462]
[1730314587846,1.61732816,2670.6,2670.4,8.7330362]
[1730314588455,1.61732816,2670.6,2670.5,3.74461]
[1730314589083,1.61732816,2670.6,2670.4,4.9883462]
[1730314589640,1.61732816,2670.6,2670.4,8.7330162]
[1730314589840,1.61732816,2670.6,2670.5,3.74461]
[1730314590278,1.61732816,2670.6,2670.4,4.9883962]
[1730314590579,1.61732816,2670.5,2670.4,4.9883962]
[1730314596061,2.21732816,2670.7,2670.5,3.74461]
[1730314596400,0.6,2670.7,2670.6,3.74447]
[1730314596560,0.6,2670.7,2670.6,4.60885475]
[1730314596759,0.6,2670.7,2670.6,4.53397]
[1730314596975,0.6,2670.7,2670.6,7.53397]
[1730314598986,0.6,2670.7,2670.6,11.53397]
[1730314599191,0.6,2670.7,2670.6,13.14915946]
[1730314600084,0.6,2670.7,2670.6,9.14915946]
[1730314600476,0.6,2670.7,2670.6,9.52375946]
[1730314603009,0.6,2670.7,2670.6,13.52375946]
[1730314604212,0.6,2670.7,2670.6,13.14915946]
[1730314605313,0.8155,2670.5,2670.0,4.51299]
[1730314605616,4.54669,2670.3,2670.2,4.0]
[1730314605899,3.7452,2670.1,2669.6,3.7458]
[1730314606104,3.74533,2670.0,2669.6,0.75480767]
[1730314606278,1.61732816,2669.7,2669.6,4.50058767]
[1730314610567,1.61732816,2669.7,2669.6,0.75480767]
[1730314610996,1.61732816,2669.7,2669.5,3.8021867]
[1730314611173,1.61732816,2669.7,2669.6,3.74587]
[1730314611372,0.01,2669.6,2669.0,4.52052]
[1730314611599,1.61732816,2669.2,2669.1,4.0]
[1730314611805,1.61732816,2669.2,2669.1,1.226731]
[1730314612282,1.61732816,2669.2,2669.1,4.973311]
[1730314612486,0.8149,2669.4,2669.1,4.973311]
[1730314612487,2.43222816,2669.4,2669.1,4.973311]
[1730314612713,0.8262,2670.0,2669.2,3.86472133]
[1730314612909,1.62732816,2669.9,2669.7,3.74573]
[1730314613066,1.62732816,2669.9,2669.7,3.74567]
[1730314613674,1.62732816,2669.9,2669.5,7.49179]
[1730314613870,1.62732816,2669.9,2669.6,4.495039]
[1730314614116,1.62732816,2669.9,2669.7,3.74573]
[1730314614488,0.01,2669.9,2669.7,3.74573]
[1730314614698,0.01,2669.9,2669.6,0.749179]
[1730314614875,0.01,2669.9,2669.5,7.49182]
[1730314615210,0.01,2669.9,2669.5,7.49181]
[1730314615707,3.62408305,2669.9,2669.5,3.74588]
[1730314615911,0.7887,2669.6,2669.2,3.0]
[1730314616118,3.61408305,2669.5,2669.1,3.74647]
[1730314616273,3.61408305,2669.5,2669.1,4.57445]
[1730314616496,7.36011305,2669.5,2669.1,4.57445]
[1730314616724,3.61408305,2669.5,2669.2,3.74642]
[1730314617237,0.7987,2669.6,2669.2,3.74634]
[1730314617539,0.7987,2669.6,2669.3,3.74628]
[1730314618129,0.7887,2669.6,2669.4,3.74614]
[1730314618693,0.7887,2669.6,2669.4,7.56713443]
[1730314619234,0.7887,2669.6,2669.4,3.82099443]
[1730314619390,0.7887,2669.6,2669.4,7.56707443]
[1730314619833,0.7887,2669.6,2669.4,3.82099443]
[1730314619993,0.7887,2669.6,2669.4,3.74608]
[1730314621435,0.7887,2669.6,2669.3,4.495432]
[1730314628176,0.7887,2669.6,2669.3,0.749262]
[1730314628467,4.54464,2669.6,2669.1,7.49306]
[1730314628745,4.54464,2669.6,2669.2,3.74643]
[1730314629342,0.7987,2669.6,2668.9,0.7801]
[1730314629513,0.7887,2669.6,2669.1,3.74658]
[1730314629713,0.7987,2669.6,2669.2,3.74644]
[1730314630111,0.7987,2669.6,2669.1,3.74658]
[1730314630112,0.7887,2669.6,2669.1,3.74658]
[1730314630310,0.01,2669.6,2669.3,3.74622]
[1730314630534,0.01,2669.6,2669.4,4.20317909]
[1730314630709,0.01,2670.0,2669.6,3.74575]
[1730314630915,0.01,2670.0,2669.6,3.82065873]
[1730314631641,3.75531,2670.0,2669.6,3.82065873]
[1730314631844,3.75531,2670.0,2669.6,3.74575]
[1730314632052,3.75531,2670.0,2669.4,1.21511386]
[1730314632372,3.75531,2670.0,2669.5,4.24213239]
[1730314633170,7.35953305,2669.9,2669.5,3.746]
[1730314633385,7.35953305,2669.9,2669.3,3.74621]
[1730314633386,4.36808305,2669.7,2669.3,3.74621]
[1730314633534,8.11381305,2669.7,2669.4,4.0]
[1730314633730,4.36808305,2669.7,2669.4,4.0]
[1730314634367,4.36808305,2669.7,2669.4,3.74609]
[1730314634368,3.61408305,2669.7,2669.4,3.74609]
[1730314634528,3.61408305,2669.7,2669.5,3.746]
[1730314635948,3.61408305,2669.7,2669.5,3.74601]
[1730314636282,3.61408305,2669.7,2669.5,7.49202]
[1730314636833,3.61408305,2669.7,2669.5,3.74601]
[1730314637047,3.61408305,2669.7,2669.6,4.2723135]
[1730314637572,0.01,2669.8,2669.6,4.2723135]
[1730314638266,8.13631305,2669.7,2669.3,3.74622]
[1730314638475,4.39058305,2669.7,2669.3,3.74622]
[1730314638834,4.39058305,2669.7,2669.4,3.74609]
[1730314640179,4.39058305,2669.7,2669.3,3.74622]
[1730314640650,4.39058305,2669.7,2669.3,7.49243]
[1730314640974,4.39058305,2669.7,2669.4,3.74614]
[1730314641183,4.39058305,2669.7,2669.4,4.571705]
[1730314642185,4.39058305,2669.7,2669.5,3.746]
[1730314643771,0.01,2669.8,2669.6,3.74587]
[1730314643976,4.40058305,2670.0,2669.8,3.74559]
[1730314644177,3.62408305,2670.0,2669.9,0.374559]
[1730314644488,3.62408305,2670.0,2669.8,3.74559]
[1730314644848,3.62408305,2670.0,2669.7,0.7809]
[1730314645589,3.62408305,2670.0,2669.8,3.74559]
[1730314646590,3.62408305,2670.0,2669.7,0.7809]
[1730314646895,3.62408305,2670.0,2669.6,3.74576]
[1730314646896,3.61408305,2669.8,2669.6,3.74576]
[1730314648367,3.61408305,2669.8,2669.6,7.49157]
[1730314648565,3.61408305,2669.8,2669.6,3.74576]
[1730314648883,0.7558,2669.9,2669.6,3.74576]
[1730314650503,3.61408305,2669.8,2669.5,3.74599]
[1730314651671,3.61408305,2669.8,2669.4,3.74608]
[1730314651872,3.61408305,2669.8,2669.4,4.199128]
[1730314652072,3.62408305,2669.8,2669.4,7.945218]
[1730314652377,3.62408305,2669.8,2669.5,3.74592]
[1730314652981,3.62408305,2669.6,2669.2,3.74634]
[1730314653183,0.7528,2669.5,2669.2,3.74634]
[1730314653384,0.7628,2669.5,2669.2,4.577775]
[1730314654588,0.7628,2669.5,2669.3,3.74624]
[1730314654789,0.7628,2669.5,2669.2,0.831435]
[1730314654984,0.7628,2669.5,2669.2,3.74642]
[1730314655523,0.7628,2669.5,2669.3,3.74627]
[1730314656619,2.38076242,2669.5,2669.3,3.74627]
[1730314656830,1.62796242,2669.5,2669.3,3.74627]
[1730314658220,1.62796242,2669.5,2669.2,3.74638]
[1730314658427,1.62796242,2669.5,2669.2,4.577815]
[1730314659013,1.62796242,2669.5,2669.2,8.324195]
[1730314659216,1.62796242,2669.5,2669.2,4.577815]
[1730314659588,1.62796242,2669.5,2669.2,8.324185]
[1730314660590,1.62796242,2669.5,2669.2,4.577805]
[1730314662827,1.62796242,2669.5,2669.3,4.27890033]
[1730314663033,1.62796242,2669.5,2669.3,4.2039805]
[1730314664540,1.62796242,2669.5,2669.3,0.4577805]
[1730314665526,1.62796242,2669.5,2669.3,4.2040605]
[1730314665712,1.62796242,2669.5,2669.3,0.4577805]
[1730314666342,1.62796242,2669.5,2669.3,4.2040705]
[1730314666647,1.62796242,2669.5,2669.4,0.78688771]
[1730314667628,1.62796242,2669.5,2669.2,3.74637]
[1730314668310,1.62796242,2669.5,2669.2,7.49271]
[1730314669056,1.62796242,2669.5,2669.3,3.74624]
[1730314670411,1.62796242,2669.5,2669.3,3.821158]
[1730314671219,1.62796242,2669.5,2669.3,3.74624]
[1730314672543,0.01,2669.8,2669.4,4.57228]
[1730314672876,0.01,2669.8,2669.5,3.74597]
[1730314673028,1.61796242,2669.7,2669.6,3.74587]
[1730314673221,1.61796242,2669.7,2669.4,4.57228]
[1730314673627,1.61796242,2669.7,2669.4,8.31837]
[1730314673927,1.61796242,2669.7,2669.5,0.9067649]
[1730314675652,1.61796242,2669.7,2669.5,4.6527649]
[1730314677932,0.01,2669.8,2669.6,3.74587]
[1730314678169,1.61796242,2669.7,2669.6,3.74587]
[1730314678367,1.61796242,2669.7,2669.5,4.6527549]
[1730314678568,1.61796242,2669.7,2669.6,0.92250349]
[1730314678948,1.61796242,2669.7,2669.6,4.66837349]
[1730314679142,1.61796242,2669.7,2669.5,3.74599]
[1730314680044,1.61796242,2669.7,2669.6,3.74587]
[1730314680524,0.01,2669.8,2669.7,3.74573]
[1730314680750,0.01,2669.8,2669.7,4.49489]
[1730314681156,0.827,2670.2,2669.8,3.74549]
[1730314681475,1.62796242,2670.2,2670.0,3.7453]
[1730314681768,1.62796242,2670.2,2670.0,4.57860949]
[1730314681970,1.62796242,2670.2,2669.8,4.51289]
[1730314682467,1.61796242,2670.0,2669.8,8.25838]
[1730314682872,1.61796242,2670.0,2669.9,3.74545]
[1730314683162,1.61796242,2670.0,2669.8,8.25838]
[1730314683366,1.61796242,2670.0,2669.9,0.900754]
[1730314683538,1.62796242,2670.0,2669.9,0.900754]
[1730314683743,1.62796242,2670.0,2669.8,0.7674]
[1730314683744,1.62796242,2670.0,2669.8,4.51299]
[1730314684156,1.62796242,2670.0,2669.8,8.25851]
[1730314684338,1.62796242,2670.0,2669.8,4.51292]
[1730314684541,1.62796242,2670.0,2669.9,3.74545]
[1730314684752,1.62796242,2670.0,2669.9,4.571287]
[1730314685267,1.61796242,2670.0,2669.9,4.571287]
[1730314686360,1.62796242,2670.0,2669.9,0.825837]
[1730314687816,1.61796242,2670.0,2669.9,4.571287]
[1730314688339,1.62796242,2670.0,2669.9,4.571287]
[1730314688760,1.61796242,2670.0,2669.9,4.571287]
[1730314689076,1.61796242,2670.2,2669.9,4.571287]
[1730314689572,1.61796242,2670.2,2669.9,4.64618628]
[1730314690249,1.61796242,2670.2,2669.9,4.64612628]
[1730314690451,1.61796242,2670.2,2670.0,3.7453]
[1730314690638,1.61796242,2670.2,2669.9,4.64612628]
[1730314691047,1.61796242,2670.2,2669.9,4.571227]
[1730314691460,0.01,2670.0,2669.9,4.571227]
[1730314691684,1.62796242,2670.2,2669.9,4.571227]
[1730314691888,0.01,2670.0,2669.9,0.825837]
[1730314692065,1.62796242,2670.2,2669.9,0.825837]
[1730314692266,1.62796242,2670.2,2669.8,4.51299]
[1730314693702,0.01,2670.0,2669.8,4.51299]
[1730314696005,1.62796242,2670.0,2669.3,0.7656]
[1730314696303,1.62796242,2670.0,2669.4,7.74607]
[1730314696304,6.17386242,2669.8,2669.4,7.74607]
[1730314696469,6.17386242,2669.8,2669.4,4.0]
[1730314696801,1.61796242,2669.6,2669.4,5.225813]
[1730314697770,1.61796242,2669.6,2669.4,4.0]
[1730314698181,1.61796242,2669.6,2669.4,7.74614]
[1730314698389,4.55638,2669.5,2669.0,3.74659]
[1730314698571,3.74644,2669.2,2669.1,4.0]
[1730314698769,0.8103,2668.7,2668.3,0.7656]
[1730314699068,1.61796242,2668.4,2668.1,3.74786]
[1730314699409,0.01,2668.5,2668.2,0.451346]
[1730314699609,1.61796242,2668.2,2668.1,3.74798]
[1730314700284,1.61796242,2668.4,2668.2,3.74775]
[1730314700487,0.01,2668.5,2668.3,3.7477]
[1730314702574,0.01,2668.5,2668.3,7.49532]
[1730314702774,0.02,2668.9,2668.6,3.74728]
[1730314702975,0.01,2668.9,2668.1,3.74798]
[1730314703181,0.846,2669.3,2668.3,4.50816]
[1730314703375,0.846,2669.3,2669.1,3.74657]
[1730314703808,0.846,2669.3,2669.1,3.7465]
[1730314705312,0.01,2669.3,2669.2,3.74644]
[1730314705635,0.01,2669.3,2669.2,4.50322685]
[1730314705915,0.01,2669.5,2669.4,3.74616]
[1730314706122,0.8267,2669.6,2669.5,3.74601]
[1730314706322,0.02,2669.7,2669.5,3.74601]
[1730314707189,0.02,2669.7,2669.3,3.74628]
[1730314707395,0.02,2669.7,2669.3,7.4925]
[1730314707629,0.02,2669.7,2669.4,3.7461]
[1730314707795,3.61810906,2669.5,2669.3,3.74622]
[1730314708130,3.62810906,2669.5,2669.3,3.74622]
[1730314708890,0.01,2669.5,2669.3,3.74622]
[1730314709317,0.75539633,2669.6,2669.3,3.74622]
[1730314709689,0.75539633,2669.6,2669.3,4.495489]
[1730314709889,0.75539633,2669.6,2669.3,3.74622]
[1730314710694,0.75539633,2669.6,2669.4,3.74607]
[1730314710908,0.75539633,2669.6,2669.3,3.74622]
[1730314711332,0.01,2669.0,2668.4,0.8074]
[1730314712326,0.8036,2669.0,2668.6,3.74715]
[1730314712635,0.87851168,2669.0,2668.6,4.577347]
[1730314713529,3.61810906,2668.9,2668.5,3.74742]
[1730314713830,3.61810906,2668.9,2668.5,7.49475]
[1730314714145,0.08491168,2668.8,2668.4,3.74753]
[1730314714348,0.08491168,2668.8,2668.3,3.74761]
[1730314714532,3.61810906,2668.5,2668.1,3.74788]
[1730314714734,3.61810906,2668.5,2668.1,4.122668]
[1730314715037,3.61810906,2668.5,2668.2,3.74783]
[1730314715413,3.61810906,2668.5,2668.3,3.7477]
[1730314716001,0.8036,2668.6,2668.3,3.74763]
[1730314716206,0.8036,2668.6,2668.4,3.74747]
[1730314716448,0.8036,2668.6,2668.2,3.7477]
[1730314716739,0.8036,2668.6,2668.4,3.74749]
[1730314717152,0.01,2667.7,2667.2,4.33579501]
[1730314717444,0.01,2667.7,2667.1,4.5538]
[1730314717740,0.01,2667.7,2667.2,0.45538]
[1730314717940,0.01,2667.7,2667.3,3.74909]
[1730314719130,0.01,2667.7,2667.3,3.74902]
[1730314719507,0.01,2667.7,2667.3,7.49805]
[1730314720005,0.01,2667.7,2667.4,3.74896]
[1730314720817,0.01,2667.7,2667.4,0.74907253]
[1730314721010,0.01,2667.7,2667.5,3.74882]
[1730314722048,4.38400906,2667.9,2667.5,3.74882]
[1730314722049,0.7659,2667.9,2667.6,3.7486]
[1730314723041,0.7659,2667.9,2667.5,7.49756]
[1730314723215,0.7659,2667.9,2667.5,7.49749]
[1730314725047,0.7659,2667.9,2667.6,3.74867]
[1730314727137,0.7659,2667.9,2667.5,3.74874]
[1730314727639,0.01,2667.7,2667.4,4.49802253]
[1730314727870,0.01,2667.7,2667.4,3.74895]
[1730314728010,3.75855,2667.7,2667.3,3.74908]
[1730314728227,0.07491168,2667.6,2667.2,3.74922]
[1730314728421,0.7902,2667.3,2667.0,3.74943]
[1730314728613,0.7902,2667.3,2666.8,3.74969]
[1730314728931,0.01,2667.1,2666.9,3.74965]
[1730314729251,0.01,2667.2,2667.1,3.74938]
[1730314729463,0.8002,2667.3,2667.1,3.74938]
[1730314730251,0.8002,2667.3,2667.2,3.74925]
[1730314730461,0.8002,2667.3,2667.0,3.74952]
[1730314730756,0.8002,2667.3,2667.0,3.74946]
[1730314730926,0.8002,2667.3,2667.2,3.74925]
[1730314731918,0.8002,2667.6,2667.2,0.749871]
[1730314732251,0.8002,2667.6,2667.5,3.74882]
[1730314732619,0.01,2667.6,2667.5,3.74882]
[1730314733529,0.01,2668.0,2667.8,3.74827]
[1730314733928,0.01,2668.0,2667.8,7.49661]
[1730314734619,0.7902,2668.2,2667.8,0.829351]
[1730314734814,0.7902,2668.2,2668.0,3.74812]
[1730314735052,0.7902,2668.2,2668.1,3.74798]
[1730314738430,0.7902,2668.2,2667.9,3.74813]
[1730314738640,0.7902,2668.2,2668.1,3.74798]
[1730314740374,0.7902,2668.2,2667.9,3.74813]
[1730314740561,0.7902,2668.2,2668.1,3.74798]
[1730314743457,0.7902,2668.2,2667.9,3.74813]
[1730314743664,0.7902,2668.2,2668.0,3.74812]
[1730314744033,0.7902,2668.2,2667.9,4.2058781]
[1730314744272,0.7902,2668.2,2668.1,3.74798]
[1730314744774,0.7902,2668.2,2668.0,3.74811]
[1730314745063,0.08491168,2668.1,2667.8,3.74834]
[1730314745755,0.08491168,2668.1,2667.9,3.74818]
[1730314750295,0.08491168,2668.1,2668.0,0.3746]
[1730314750604,0.08491168,2668.1,2667.9,3.74818]
[1730314750803,0.08491168,2668.1,2667.8,3.74834]
[1730314751011,0.08491168,2668.1,2668.0,3.74812]
[1730314752223,0.07491168,2668.2,2668.1,3.74798]
[1730314752427,0.01,2668.3,2668.2,3.74784]
[1730314766472,0.01,2668.5,2668.4,3.74756]